bitfinex/quotes_BTCUSD_20250607
["timestamp","ask_amount","ask_price","bid_price","bid_amount"]
[1749262481162,0.98132855,104510.0,104500.0,1.14366853]
[1749262481641,0.99922561,104510.0,104500.0,1.14366853]
[1749262482155,1.72552282,104510.0,104500.0,0.52559622]
[1749262482365,5.89984555,104510.0,104500.0,1.10539305]
[1749262482569,5.89984507,104510.0,104500.0,1.10539305]
[1749262483644,5.89984014,104510.0,104500.0,1.11496224]
[1749262483849,5.89984015,104510.0,104500.0,1.11496224]
[1749262484457,5.89984015,104510.0,104500.0,1.12453134]
[1749262485222,5.89984143,104510.0,104500.0,1.12453134]
[1749262485550,5.89984144,104510.0,104500.0,1.12453134]
[1749262486101,5.89983852,104510.0,104500.0,1.12453134]
[1749262486248,5.89983853,104510.0,104500.0,1.12453134]
[1749262486448,5.89983854,104510.0,104500.0,1.12453134]
[1749262486656,5.88194849,104510.0,104500.0,1.12453134]
[1749262487158,5.89983855,104510.0,104500.0,1.12453134]
[1749262488165,5.89984113,104510.0,104500.0,1.12453134]
[1749262488363,5.88194849,104510.0,104500.0,1.12453134]
[1749262488567,5.89984113,104510.0,104500.0,1.12453134]
[1749262489151,5.69890297,104510.0,104500.0,1.12453134]
[1749262489330,5.11737827,104510.0,104500.0,1.14366889]
[1749262489476,5.13651418,104510.0,104500.0,1.14366889]
[1749262489695,5.14608245,104510.0,104500.0,1.14366889]
[1749262490708,5.12694609,104510.0,104500.0,1.14366889]
[1749262490966,5.14608245,104510.0,104500.0,1.14366889]
[1749262492885,5.16398168,104510.0,104500.0,1.14366889]
[1749262493491,5.16398233,104510.0,104500.0,0.86794889]
[1749262493607,5.14608245,104510.0,104500.0,0.86794889]
[1749262494214,5.16398233,104510.0,104500.0,0.86794889]
[1749262495298,5.16398341,104510.0,104500.0,0.86794889]
[1749262495521,5.14608245,104510.0,104500.0,0.86794889]
[1749262495735,5.16398341,104510.0,104500.0,0.86794889]
[1749262496890,5.16398346,104510.0,104500.0,0.86794889]
[1749262497225,5.14608245,104510.0,104500.0,0.86794889]
[1749262497442,5.16398337,104510.0,104500.0,0.86794889]
[1749262497653,5.17355164,104510.0,104500.0,0.86794889]
[1749262498814,5.17355266,104510.0,104500.0,0.86794889]
[1749262499012,5.17355308,104510.0,104500.0,0.86794889]
[1749262499440,5.15565063,104510.0,104500.0,0.86794889]
[1749262499651,5.16398482,104510.0,104500.0,0.86794889]
[1749262499867,5.17355309,104510.0,104500.0,0.86794889]
[1749262500084,5.16398482,104510.0,104500.0,0.86794889]
[1749262500295,5.13651418,104510.0,104500.0,0.86794889]
[1749262500762,5.14608245,104510.0,104500.0,0.86794889]
[1749262500972,5.16398676,104510.0,104500.0,0.86794889]
[1749262501171,5.14608245,104510.0,104500.0,0.86794889]
[1749262501377,5.16398676,104510.0,104500.0,0.86794889]
[1749262501778,5.16398685,104510.0,104500.0,0.86794889]
[1749262501977,5.14608245,104510.0,104500.0,0.86794889]
[1749262502151,5.16398631,104510.0,104500.0,0.86794889]
[1749262502569,5.15565082,104510.0,104500.0,0.86794889]
[1749262502791,5.17355616,104510.0,104500.0,0.86794889]
[1749262503203,5.15565082,104510.0,104500.0,0.56798016]
[1749262503428,5.3649254,104510.0,104500.0,0.85838016]
[1749262503634,5.18312454,104510.0,104500.0,0.85838016]
[1749262503857,5.9189901,104510.0,104500.0,0.82967305]
[1749262504066,5.89151676,104510.0,104500.0,0.82967305]
[1749262504371,5.89151676,104510.0,104500.0,0.83924224]
[1749262504557,4.57288212,104510.0,104500.0,0.85837998]
[1749262504766,5.14608226,104510.0,104500.0,0.85837998]
[1749262505183,5.11428217,104510.0,104500.0,0.85837998]
[1749262505598,5.12385044,104510.0,104500.0,0.85837998]
[1749262506215,5.14175679,104510.0,104500.0,0.85837998]
[1749262506458,5.15132516,104510.0,104500.0,0.85837998]
[1749262506659,5.16642516,104510.0,104500.0,0.85837998]
[1749262506900,5.18242516,104510.0,104500.0,0.85837998]
[1749262507115,5.18242516,104510.0,104500.0,0.84881125]
[1749262507333,5.18242516,104510.0,104500.0,0.85838007]
[1749262507640,5.1824259,104510.0,104500.0,0.85838007]
[1749262508528,5.1824259,104510.0,104500.0,0.8679488]
[1749262508990,5.18242573,104510.0,104500.0,0.8679488]
[1749262509206,5.16451955,104510.0,104500.0,0.8679488]
[1749262509649,5.18242509,104510.0,104500.0,0.8679488]
[1749262509853,5.16451955,104510.0,104500.0,0.8679488]
[1749262510080,5.18242509,104510.0,104500.0,0.8679488]
[1749262511355,5.1824251,104510.0,104500.0,0.8679488]
[1749262511909,5.18242509,104510.0,104500.0,0.8679488]
[1749262512703,5.18242559,104510.0,104500.0,0.8679488]
[1749262513143,4.59131857,104510.0,104500.0,0.8679488]
[1749262513366,5.16329023,104510.0,104500.0,0.8679488]
[1749262513585,5.1728586,104510.0,104500.0,0.8679488]
[1749262514455,5.18242682,104510.0,104500.0,0.85838007]
[1749262514839,5.16451955,104510.0,104500.0,0.85850007]
[1749262515189,5.18242675,104510.0,104500.0,0.85850007]
[1749262515343,5.36422799,104510.0,104500.0,0.85850007]
[1749262515546,5.17285875,104510.0,104500.0,0.85850007]
[1749262516046,5.15495155,104510.0,104500.0,0.85850007]
[1749262516401,5.17286109,104510.0,104500.0,0.85850007]
[1749262518435,5.17286095,104510.0,104500.0,0.85850007]
[1749262519208,4.64172477,104510.0,104500.0,0.8680688]
[1749262519409,5.19578892,104510.0,104500.0,0.85850007]
[1749262520214,5.17787952,104510.0,104500.0,0.85850007]
[1749262520425,5.17286333,104510.0,104500.0,0.85850007]
[1749262521514,5.36423257,104510.0,104500.0,0.84893125]
[1749262521696,5.36423205,104510.0,104500.0,0.84893125]
[1749262522266,5.34632079,104510.0,104500.0,0.84893125]
[1749262522491,5.36423206,104510.0,104500.0,0.84893125]
[1749262522930,5.17286282,104510.0,104500.0,0.85850007]
[1749262523150,5.17286282,104510.0,104500.0,0.8680688]
[1749262523410,5.15686282,104510.0,104500.0,0.8680688]
[1749262523675,5.14729436,104510.0,104500.0,0.8680688]
[1749262523878,5.14729441,104510.0,104500.0,0.8680688]
[1749262524057,5.12938309,104510.0,104500.0,0.8680688]
[1749262524258,4.60279872,104510.0,104500.0,0.85850007]
[1749262524474,4.59322916,104510.0,104500.0,0.8680688]
[1749262524647,5.15132995,104510.0,104500.0,0.8680688]
[1749262524854,5.15132969,104510.0,104500.0,0.8680688]
[1749262525275,5.15132957,104510.0,104500.0,0.8680688]
[1749262525502,5.1417612,104510.0,104500.0,0.8680688]
[1749262525928,5.14176119,104510.0,104500.0,0.8680688]
[1749262526328,5.13219292,104510.0,104500.0,0.8680688]
[1749262526543,0.36553405,104510.0,104500.0,0.98006828]
[1749262526757,0.34762312,104510.0,104500.0,0.99566828]
[1749262529190,0.90168727,104510.0,104500.0,0.99566828]
[1749262535023,0.34762312,104510.0,104500.0,0.99566828]
[1749262539163,0.90168727,104510.0,104500.0,0.99566828]
[1749262539983,0.34762312,104510.0,104500.0,0.99566828]
[1749262540462,0.34662312,104510.0,104500.0,0.99566828]
[1749262541291,0.00662312,104510.0,104500.0,1.54973243]
[1749262541495,0.00662312,104510.0,104500.0,1.55073243]
[1749262542123,0.00662312,104510.0,104500.0,1.55173243]
[1749262543653,0.00662312,104510.0,104500.0,1.56126799]
[1749262544508,0.00662312,104510.0,104500.0,1.00720384]
[1749262548596,0.00662312,104510.0,104500.0,1.56126799]
[1749262550647,0.00662312,104510.0,104500.0,1.55173243]
[1749262550851,0.00662312,104510.0,104500.0,1.82749243]
[1749262551804,0.00662312,104510.0,104500.0,1.27342828]
[1749262553629,0.00662312,104510.0,104500.0,1.28324483]
[1749262553838,0.00662312,104510.0,104500.0,1.83730898]
[1749262555282,0.00662312,104510.0,104500.0,1.91730898]
[1749262563005,0.00662312,104510.0,104500.0,2.47137313]
[1749262563252,0.00662312,104510.0,104500.0,2.52137313]
[1749262564295,0.00662312,104510.0,104500.0,2.52037313]
[1749262564608,0.00662312,104510.0,104500.0,2.52537313]
[1749262564815,0.00662312,104510.0,104500.0,2.52437313]
[1749262565020,0.00662312,104510.0,104500.0,2.53037313]
[1749262570971,0.00662312,104510.0,104500.0,2.48037313]
[1749262571192,0.00662312,104510.0,104500.0,2.53037313]
[1749262574208,0.93431997,104540.0,104530.0,0.22003142]
[1749262574424,0.93431997,104540.0,104530.0,0.6963109]
[1749262575743,0.93431997,104540.0,104530.0,0.6973109]
[1749262577251,0.93431997,104540.0,104530.0,0.6983109]
[1749262578239,0.38025582,104540.0,104530.0,0.6983109]
[1749262578463,0.93431997,104540.0,104530.0,0.6983109]
[1749262578976,0.93431997,104540.0,104530.0,0.9464309]
[1749262580710,0.92466415,104540.0,104530.0,0.9464309]
[1749262583094,0.9344804,104540.0,104530.0,0.9464309]
[1749262583735,0.9344804,104540.0,104530.0,1.2221109]
[1749262583962,0.92466415,104540.0,104530.0,1.2221109]
[1749262587125,0.93446122,104540.0,104530.0,1.2221109]
[1749262587947,0.92466415,104540.0,104530.0,1.2221109]
[1749262594912,0.3706,104540.0,104530.0,1.2221109]
[1749262595125,0.92466415,104540.0,104530.0,1.2221109]
[1749262595771,0.0306,104540.0,104530.0,1.2221109]
[1749262595975,0.92466415,104540.0,104530.0,1.2221109]
[1749262598727,0.92466415,104540.0,104530.0,1.2223509]
[1749262601626,0.3706,104540.0,104530.0,1.2223509]
[1749262601840,0.92466415,104540.0,104530.0,1.2223509]
[1749262612967,0.92466415,104540.0,104530.0,1.2219109]
[1749262616090,1.50742415,104540.0,104530.0,0.73626543]
[1749262616281,1.72623702,104540.0,104530.0,1.10653917]
[1749262616509,6.46458665,104540.0,104530.0,1.09697263]
[1749262616748,5.9105225,104540.0,104530.0,1.11610561]
[1749262616941,5.9392765,104540.0,104530.0,0.72669926]
[1749262617148,5.9392765,104540.0,104530.0,1.10653907]
[1749262617560,5.93927729,104540.0,104530.0,1.10653907]
[1749262617766,5.93927831,104540.0,104530.0,1.10653907]
[1749262617965,5.96222585,104540.0,104530.0,1.10653907]
[1749262618189,5.93926589,104540.0,104530.0,1.10653907]
[1749262618394,5.96220733,104540.0,104530.0,1.10653907]
[1749262619038,5.94428501,104540.0,104530.0,1.10653907]
[1749262619242,5.92134357,104540.0,104530.0,1.10653907]
[1749262619438,5.93926706,104540.0,104530.0,1.10653907]
[1749262619641,5.92134357,104540.0,104530.0,1.10653907]
[1749262619885,5.93926702,104540.0,104530.0,1.10653907]
[1749262620087,5.93926702,104540.0,104530.0,1.11610542]
[1749262620291,5.93926702,104540.0,104530.0,1.10653907]
[1749262621053,5.93926702,104540.0,104530.0,1.11610542]
[1749262621675,5.93926702,104540.0,104530.0,1.12567168]
[1749262621911,5.75751805,104540.0,104530.0,0.84042542]
[1749262622125,5.75751043,104540.0,104530.0,0.84999168]
[1749262622368,5.94882475,104540.0,104530.0,0.83085907]
[1749262622598,5.75751043,104540.0,104530.0,0.84042533]
[1749262622844,5.76707541,104540.0,104530.0,0.83085907]
[1749262623067,5.76707541,104540.0,104530.0,0.84999168]
[1749262623738,5.74915958,104540.0,104530.0,0.84042542]
[1749262623924,5.74915958,104540.0,104530.0,0.84999168]
[1749262624576,5.77663746,104540.0,104530.0,0.83085907]
[1749262624780,5.96795178,104540.0,104530.0,0.83085907]
[1749262625009,5.95838671,104540.0,104530.0,0.83085907]
[1749262625224,5.95838671,104540.0,104530.0,0.84999168]
[1749262625397,5.94882136,104540.0,104530.0,0.83085907]
[1749262625607,6.49829243,104540.0,104530.0,0.25012]
[1749262625822,6.50330996,104540.0,104530.0,0.63]
[1749262626131,6.52121854,104540.0,104530.0,0.63008]
[1749262626323,6.52793326,104540.0,104530.0,0.63008]
[1749262627355,6.52792208,104540.0,104530.0,0.63008]
[1749262627564,6.52791766,104540.0,104530.0,0.63008]
[1749262627769,6.52791655,104540.0,104530.0,0.63004]
[1749262627990,6.52791611,104540.0,104530.0,0.63004]
[1749262628482,6.51002073,104540.0,104530.0,0.63004]
[1749262628688,6.52791611,104540.0,104530.0,0.63004]
[1749262629120,6.52120534,104540.0,104530.0,0.63004]
[1749262629332,6.5279161,104540.0,104530.0,0.63004]
[1749262629546,6.52790772,104540.0,104530.0,0.63004]
[1749262629756,6.52790684,104540.0,104530.0,0.63004]
[1749262629968,0.00956663,104530.0,104520.0,0.00956754]
[1749262630176,5.86431856,104530.0,104520.0,0.53783847]
[1749262630385,5.88220721,104530.0,104520.0,0.54740592]
[1749262631232,5.91096368,104530.0,104520.0,0.83848592]
[1749262631429,5.89307556,104530.0,104520.0,0.83848592]
[1749262631662,5.89307556,104530.0,104520.0,0.83948592]
[1749262631874,5.89307556,104530.0,104520.0,0.84905328]
[1749262632086,5.90264191,104530.0,104520.0,0.84905328]
[1749262632503,5.90264191,104530.0,104520.0,0.85005328]
[1749262633710,4.79451361,104530.0,104520.0,0.85005328]
[1749262633949,5.90264191,104530.0,104520.0,0.85962055]
[1749262635217,5.90264191,104530.0,104520.0,0.86918773]
[1749262638334,5.90264191,104530.0,104520.0,0.86918727]
[1749262638784,5.71130928,104530.0,104520.0,0.86918727]
[1749262638985,5.90264191,104530.0,104520.0,0.86918727]
[1749262639148,5.90264191,104530.0,104520.0,0.85962019]
[1749262639589,5.90264191,104530.0,104520.0,0.85862019]
[1749262639880,5.90364191,104530.0,104520.0,0.85862019]
[1749262640614,5.90364191,104530.0,104520.0,0.85762019]
[1749262640814,5.71330928,104530.0,104520.0,0.86718727]
[1749262641030,5.90464191,104530.0,104520.0,0.86718727]
[1749262644864,5.9225476,104530.0,104520.0,0.86718727]
[1749262645056,5.92254696,104530.0,104520.0,0.86718727]
[1749262645288,5.92254617,104530.0,104520.0,0.86718727]
[1749262645943,5.92254519,104530.0,104520.0,0.86718727]
[1749262646400,5.92254448,104530.0,104520.0,0.86718727]
[1749262647063,5.92254551,104530.0,104520.0,0.86718727]
[1749262647765,5.9225455,104530.0,104520.0,0.86718681]
[1749262647975,5.90464191,104530.0,104520.0,0.86718681]
[1749262648183,5.92254683,104530.0,104520.0,0.86718681]
[1749262648401,5.72287527,104530.0,104520.0,0.86718681]
[1749262648568,5.75034668,104530.0,104520.0,0.86718681]
[1749262648789,5.75034658,104530.0,104520.0,0.86718635]
[1749262648942,5.75034658,104530.0,104520.0,0.85761945]
[1749262649138,5.75034665,104530.0,104520.0,0.85761945]
[1749262649370,5.75034773,104530.0,104520.0,0.85761945]
[1749262650272,5.75035003,104530.0,104520.0,0.85761945]
[1749262650958,5.7324418,104530.0,104520.0,0.85761945]
[1749262651170,5.75035002,104530.0,104520.0,0.85761945]
[1749262651899,5.7153164,104530.0,104520.0,0.86718635]
[1749262652100,5.71532039,104530.0,104520.0,0.86718635]
[1749262652309,5.72488665,104530.0,104520.0,0.86718635]
[1749262652517,5.74782223,104530.0,104520.0,0.86718635]
[1749262652873,5.75739178,104530.0,104520.0,0.86718635]
[1749262653074,5.76695837,104530.0,104520.0,0.86718635]
[1749262653277,5.76494787,104530.0,104520.0,0.86718635]
[1749262653483,5.78286833,104530.0,104520.0,0.86718635]
[1749262653950,5.76373535,104530.0,104520.0,0.86718635]
[1749262654151,5.78286833,104530.0,104520.0,0.86718635]
[1749262654342,5.78287238,104530.0,104520.0,0.86718635]
[1749262654530,5.76494787,104530.0,104520.0,0.86718635]
[1749262654678,5.78287393,104530.0,104520.0,0.86718635]
[1749262655543,5.77330739,104530.0,104520.0,0.86718635]
[1749262655738,5.73234095,104530.0,104520.0,0.86718635]
[1749262655918,5.74191774,104530.0,104520.0,0.86718635]
[1749262656329,4.60509066,104530.0,104520.0,0.88218635]
[1749262656572,4.60509066,104530.0,104520.0,0.99398583]
[1749262656573,0.91400056,104530.0,104520.0,0.99398583]
[1749262657273,0.91400212,104530.0,104520.0,0.99398583]
[1749262657728,0.91400219,104530.0,104520.0,0.99398583]
[1749262658145,0.92356799,104530.0,104520.0,0.99398583]
[1749262658344,0.92355974,104530.0,104520.0,0.99398583]
[1749262658546,0.90562995,104530.0,104520.0,0.99398583]
[1749262658750,0.92355974,104530.0,104520.0,0.99398583]
[1749262659598,0.91519584,104530.0,104520.0,0.99398583]
[1749262659821,0.93312538,104530.0,104520.0,0.99398583]
[1749262660779,0.91519584,104530.0,104520.0,0.99398583]
[1749262661130,0.93312137,104530.0,104520.0,0.99398583]
[1749262662016,0.93312119,104530.0,104520.0,0.99398583]
[1749262662388,0.94268727,104530.0,104520.0,0.99398583]
[1749262662575,0.92476192,104530.0,104520.0,0.99398583]
[1749262662998,0.92476192,104530.0,104520.0,0.97858583]
[1749262665141,0.92476192,104530.0,104520.0,0.96358583]
[1749262665738,0.92476192,104530.0,104520.0,1.23930583]
[1749262666252,0.9426837,104530.0,104520.0,1.23930583]
[1749262666387,0.94268425,104530.0,104520.0,1.23930583]
[1749262667077,0.95225051,104530.0,104520.0,1.23930583]
[1749262667275,0.93432818,104530.0,104520.0,1.23930583]
[1749262667407,0.94268425,104530.0,104520.0,1.23930583]
[1749262667766,0.94268367,104530.0,104520.0,1.23930583]
[1749262668207,0.93432809,104530.0,104520.0,1.23930583]
[1749262668408,0.95225013,104530.0,104520.0,1.23930583]
[1749262669412,0.96181657,104530.0,104520.0,0.85946583]
[1749262669616,0.94389453,104530.0,104520.0,1.23886583]
[1749262669762,0.96181728,104530.0,104520.0,1.23886583]
[1749262670162,0.94389453,104530.0,104520.0,1.23886583]
[1749262670516,0.96181843,104530.0,104520.0,1.23886583]
[1749262670717,0.9618183,104530.0,104520.0,1.23886583]
[1749262670929,0.94389444,104530.0,104520.0,1.23886583]
[1749262671141,0.9618183,104530.0,104520.0,1.23886583]
[1749262672535,0.94389444,104530.0,104520.0,1.23886583]
[1749262672744,0.96181907,104530.0,104520.0,1.23886583]
[1749262673005,0.96181906,104530.0,104520.0,1.23886583]
[1749262674144,0.91398877,104530.0,104520.0,1.23886583]
[1749262674344,0.91398901,104530.0,104520.0,1.23886583]
[1749262674574,0.91398882,104530.0,104520.0,1.27046583]
[1749262674784,0.89606415,104530.0,104520.0,1.27046583]
[1749262682056,0.342,104530.0,104520.0,1.27046583]
[1749262682258,0.89606415,104530.0,104520.0,1.27046583]
[1749262682679,0.342,104530.0,104520.0,1.27046583]
[1749262683316,0.002,104530.0,104520.0,1.82452998]
[1749262684484,0.002,104530.0,104520.0,1.27046583]
[1749262685869,0.002,104530.0,104520.0,2.37859413]
[1749262686083,0.002,104530.0,104520.0,1.82452998]
[1749262686701,0.001,104530.0,104520.0,1.82452998]
[1749262686908,0.001,104530.0,104520.0,1.90452998]
[1749262687115,0.90365628,104550.0,104540.0,0.25101036]
[1749262687294,0.90365628,104550.0,104540.0,0.72648984]
[1749262688306,0.90370425,104550.0,104540.0,0.72648984]
[1749262689670,0.90370425,104550.0,104540.0,0.72748984]
[1749262697158,0.90370425,104550.0,104540.0,0.69648984]
[1749262698218,0.90370425,104550.0,104540.0,0.71298984]
[1749262698420,0.90370425,104550.0,104540.0,0.72868984]
[1749262701477,0.3496401,104550.0,104540.0,0.97676984]
[1749262701694,0.90370425,104550.0,104540.0,0.97676984]
[1749262704696,0.3496401,104550.0,104540.0,0.97676984]
[1749262704893,0.90370425,104550.0,104540.0,0.97676984]
[1749262705718,0.3496401,104550.0,104540.0,0.97676984]
[1749262705890,0.90370425,104550.0,104540.0,0.97676984]
[1749262706362,4.797e-05,104550.0,104540.0,1.80651399]
[1749262708863,4.797e-05,104550.0,104540.0,1.88651399]
[1749262712214,4.797e-05,104550.0,104540.0,1.33244984]
[1749262712608,4.797e-05,104550.0,104540.0,1.88651399]
[1749262715812,4.797e-05,104550.0,104540.0,1.33244984]
[1749262718333,4.797e-05,104550.0,104540.0,0.92116984]
[1749262718588,0.58501212,104550.0,104540.0,1.29996984]
[1749262719869,0.92501212,104550.0,104540.0,1.29996984]
[1749262725366,0.93457609,104550.0,104540.0,1.29996984]
[1749262725565,0.92501212,104550.0,104540.0,1.29996984]
[1749262726463,0.92501212,104550.0,104540.0,0.92116984]
[1749262726703,0.92501212,104550.0,104540.0,1.29996984]
[1749262729220,0.93457609,104550.0,104540.0,1.29996984]
[1749262729422,0.92501212,104550.0,104540.0,1.29996984]
[1749262732834,0.94414034,104550.0,104540.0,0.91160477]
[1749262733077,5.89129748,104550.0,104540.0,1.17491432]
[1749262733321,5.90465985,104550.0,104540.0,0.99316571]
[1749262733582,5.90465964,104550.0,104540.0,1.19404565]
[1749262733795,5.93340964,104550.0,104540.0,1.11404565]
[1749262734703,5.93340964,104550.0,104540.0,1.12361118]
[1749262734924,5.91550298,104550.0,104540.0,1.12361118]
[1749262735143,5.9334096,104550.0,104540.0,1.13317662]
[1749262735367,5.93324104,104550.0,104540.0,1.13317662]
[1749262735825,5.91029938,104550.0,104540.0,1.14274197]
[1749262736325,5.91029958,104550.0,104540.0,1.14274197]
[1749262736668,5.91029962,104550.0,104540.0,0.76390197]
[1749262736891,5.91029962,104550.0,104540.0,1.14278151]
[1749262737944,5.91029186,104550.0,104540.0,1.14278151]
[1749262738610,4.80233215,104550.0,104540.0,1.14278151]
[1749262738857,5.91029189,104550.0,104540.0,1.14278151]
[1749262739075,5.91028765,104550.0,104540.0,1.14278151]
[1749262739726,5.91028762,104550.0,104540.0,1.14278151]
[1749262740232,5.89240935,104550.0,104540.0,1.14278105]
[1749262740437,5.91028783,104550.0,104540.0,1.14278105]
[1749262741561,5.89240935,104550.0,104540.0,1.14278105]
[1749262742188,5.71899149,104550.0,104540.0,1.14278105]
[1749262742390,5.193705,104550.0,104540.0,1.14278059]
[1749262743425,5.19370555,104550.0,104540.0,1.14278059]
[1749262743633,5.17582656,104550.0,104540.0,1.14278059]
[1749262743834,5.19370556,104550.0,104540.0,1.14278059]
[1749262744058,5.74768543,104550.0,104540.0,1.14278059]
[1749262744486,5.72024172,104550.0,104540.0,1.14278059]
[1749262744711,5.73812396,104550.0,104540.0,0.86710059]
[1749262745546,5.72024172,104550.0,104540.0,0.86710059]
[1749262745777,5.7381295,104550.0,104540.0,0.86710059]
[1749262746895,5.72024172,104550.0,104540.0,0.86710059]
[1749262747114,5.71067711,104550.0,104540.0,0.86710059]
[1749262747324,5.7381303,104550.0,104540.0,0.86710059]
[1749262747555,5.72024154,104550.0,104540.0,0.86710059]
[1749262747782,5.7381303,104550.0,104540.0,0.86710059]
[1749262747987,5.74769482,104550.0,104540.0,0.86710059]
[1749262748846,5.73937067,104550.0,104540.0,0.86710059]
[1749262749046,5.75726784,104550.0,104540.0,0.86710059]
[1749262749534,5.73937067,104550.0,104540.0,0.86710059]
[1749262749734,5.75726858,104550.0,104540.0,0.86710059]
[1749262749943,5.75726976,104550.0,104540.0,0.85753552]
[1749262750370,5.73937141,104550.0,104540.0,0.85753552]
[1749262750809,5.75726976,104550.0,104540.0,0.85753552]
[1749262752177,5.75727091,104550.0,104540.0,0.85753552]
[1749262752599,5.73937141,104550.0,104540.0,0.85753552]
[1749262752819,5.74770657,104550.0,104540.0,0.85753552]
[1749262753033,5.9390026,104550.0,104540.0,0.85753552]
[1749262753816,5.93900551,104550.0,104540.0,0.85753552]
[1749262754037,5.9211031,104550.0,104540.0,0.85753552]
[1749262754241,5.93900551,104550.0,104540.0,0.84797036]
[1749262754477,5.92944108,104550.0,104540.0,0.84797036]
[1749262754705,5.92944108,104550.0,104540.0,0.85753552]
[1749262755630,5.92944406,104550.0,104540.0,0.85753552]
[1749262756057,5.91153867,104550.0,104540.0,0.85753552]
[1749262756261,5.92944406,104550.0,104540.0,0.85753552]
[1749262757208,5.9293323,104550.0,104540.0,0.85753552]
[1749262757419,5.92933743,104550.0,104540.0,0.85753552]
[1749262757631,5.91142553,104550.0,104540.0,0.85753552]
[1749262757847,5.92933743,104550.0,104540.0,0.33756]
[1749262758058,5.93313568,104550.0,104540.0,0.82887994]
[1749262758262,5.91522326,104550.0,104540.0,0.82887994]
[1749262758490,5.93313532,104550.0,104540.0,0.83844547]
[1749262758695,5.93313532,104550.0,104540.0,0.84801091]
[1749262759109,5.91522326,104550.0,104540.0,0.84801091]
[1749262759524,5.93313532,104550.0,104540.0,0.84801091]
[1749262760138,5.91522326,104550.0,104540.0,0.84801091]
[1749262760393,5.93313646,104550.0,104540.0,0.84801091]
[1749262761022,5.93313646,104550.0,104540.0,0.85757616]
[1749262761218,5.93314577,104550.0,104540.0,0.85757616]
[1749262761423,5.93314576,104550.0,104540.0,0.85757616]
[1749262761682,5.91522326,104550.0,104540.0,0.84801091]
[1749262761896,5.93314576,104550.0,104540.0,0.84801091]
[1749262762236,6.59800939,104550.0,104540.0,0.24908]
[1749262762462,0.00956782,104510.0,104500.0,0.23354428]
[1749262762700,0.82391185,104520.0,104510.0,0.21050588]
[1749262762903,0.82391185,104520.0,104510.0,0.31647345]
[1749262762904,0.80597621,104520.0,104510.0,0.31647345]
[1749262763125,0.82391148,104520.0,104510.0,0.31647345]
[1749262763347,0.85266848,104520.0,104510.0,0.69547345]
[1749262763999,1.40659178,104520.0,104510.0,0.69547345]
[1749262764207,1.40655947,104520.0,104510.0,0.31647345]
[1749262764414,1.38865651,104520.0,104510.0,0.69547345]
[1749262764826,1.40655946,104520.0,104510.0,0.69647345]
[1749262765032,1.38865651,104520.0,104510.0,0.69647345]
[1749262765233,1.40718265,104520.0,104510.0,0.94459345]
[1749262765886,5.93483669,104520.0,104510.0,0.33764]
[1749262766140,5.94937656,104520.0,104510.0,0.62864]
[1749262766354,5.93147727,104520.0,104510.0,0.62864]
[1749262766794,5.95608776,104520.0,104510.0,0.62864]
[1749262767205,5.94937581,104520.0,104510.0,0.62864]
[1749262767646,5.94934497,104520.0,104510.0,0.62764]
[1749262767887,1.76645397,104520.0,104510.0,0.62764]
[1749262768088,5.95034497,104520.0,104510.0,0.62764]
[1749262768202,5.95134498,104520.0,104510.0,0.62764]
[1749262769275,5.95134148,104520.0,104510.0,0.62764]
[1749262769676,5.95134152,104520.0,104510.0,0.62764]
[1749262769882,5.95134153,104520.0,104510.0,0.62764]
[1749262771405,5.951328,104520.0,104510.0,0.62764]
[1749262772676,5.95131789,104520.0,104510.0,0.62764]
[1749262773082,1.76742686,104520.0,104510.0,0.62764]
[1749262773283,5.95131786,104520.0,104510.0,0.62764]
[1749262773920,5.95131414,104520.0,104510.0,0.62764]
[1749262774350,5.93347727,104520.0,104510.0,0.62764]
[1749262774668,5.95131259,104520.0,104510.0,0.62764]
[1749262776514,5.92841244,104520.0,104510.0,0.62764]
[1749262776682,5.92841121,104520.0,104510.0,0.62764]
[1749262776881,5.95124559,104520.0,104510.0,0.62764]
[1749262777510,5.91057712,104520.0,104510.0,0.62764]
[1749262777880,5.9284113,104520.0,104510.0,0.62764]
[1749262778287,5.91057712,104520.0,104510.0,0.62764]
[1749262778494,5.9284113,104520.0,104510.0,0.62764]
[1749262778794,5.9284113,104520.0,104510.0,0.24812]
[1749262779009,5.9284113,104520.0,104510.0,0.62772]
[1749262780808,5.93341822,104520.0,104510.0,0.62772]
[1749262781014,5.95125891,104520.0,104510.0,0.62772]
[1749262781300,1.76736791,104520.0,104510.0,0.62772]
[1749262781595,5.95125891,104520.0,104510.0,0.62772]
[1749262781804,5.95126583,104520.0,104510.0,0.62772]
[1749262782306,5.95126579,104520.0,104510.0,0.62772]
[1749262782523,5.93341822,104520.0,104510.0,0.62772]
[1749262782820,5.95126579,104520.0,104510.0,0.62772]
[1749262783831,5.95127473,104520.0,104510.0,0.62772]
[1749262784236,5.93341822,104520.0,104510.0,0.62772]
[1749262784445,5.95127473,104520.0,104510.0,0.62772]
[1749262785407,1.76738691,104520.0,104510.0,0.62772]
[1749262785702,5.93341822,104520.0,104510.0,0.62772]
[1749262786412,1.76738691,104520.0,104510.0,0.62772]
[1749262786617,5.95127791,104520.0,104510.0,0.62772]
[1749262787277,6.5058852,104520.0,104510.0,0.62772]
[1749262788076,6.51259108,104520.0,104510.0,0.62772]
[1749262788852,6.49473139,104520.0,104510.0,0.62772]
[1749262789052,5.93366648,104520.0,104510.0,0.62772]
[1749262789297,5.95825472,104520.0,104510.0,0.62772]
[1749262789499,5.93366648,104520.0,104510.0,0.62772]
[1749262789704,5.95825472,104520.0,104510.0,0.62772]
[1749262790445,5.94038751,104520.0,104510.0,0.62772]
[1749262790671,6.51266928,104520.0,104510.0,0.62772]
[1749262790884,4.84959219,104520.0,104510.0,0.62772]
[1749262791086,6.51266934,104520.0,104510.0,0.62772]
[1749262791511,6.51266935,104520.0,104510.0,0.62772]
[1749262791719,6.54136606,104520.0,104510.0,0.62772]
[1749262792342,6.54136626,104520.0,104510.0,0.62772]
[1749262792564,6.51672222,104520.0,104510.0,0.62772]
[1749262792777,6.52344332,104520.0,104510.0,0.62772]
[1749262792989,6.54136626,104520.0,104510.0,0.62772]
[1749262793315,6.54136718,104520.0,104510.0,0.62772]
[1749262793733,6.54138529,104520.0,104510.0,0.62772]
[1749262793941,6.54139243,104520.0,104510.0,0.62772]
[1749262794151,6.5346642,104520.0,104510.0,0.62772]
[1749262794778,6.54139244,104520.0,104510.0,0.62772]
[1749262795209,6.53466381,104520.0,104510.0,0.62772]
[1749262795417,6.5413919,104520.0,104510.0,0.62772]
[1749262795633,6.54139192,104520.0,104510.0,0.62772]
[1749262795830,6.52345031,104520.0,104510.0,0.62772]
[1749262796059,6.57965422,104520.0,104510.0,0.62772]
[1749262796345,6.57292612,104520.0,104510.0,0.62772]
[1749262796550,6.57965422,104520.0,104510.0,0.62796]
[1749262796786,6.52811641,104520.0,104510.0,0.62796]
[1749262796988,6.57980057,104520.0,104510.0,0.62796]
[1749262797197,6.57980057,104520.0,104510.0,0.62832]
[1749262797401,6.57307228,104520.0,104510.0,0.62832]